bitfinex/quotes_ETHUSD_20250210
["timestamp","ask_amount","ask_price","bid_price","bid_amount"]
[1739226783883,0.8108,2671.7,2671.3,3.74341]
[1739226784272,4.55382,2671.7,2671.2,7.48713]
[1739226784471,4.55382,2671.7,2671.2,7.48707]
[1739226784670,4.55382,2671.7,2671.3,3.74349]
[1739226785005,0.8108,2671.7,2671.3,3.74349]
[1739226786217,0.8108,2671.7,2671.4,3.74328]
[1739226786369,0.8108,2671.7,2671.4,3.74327]
[1739226790321,0.8108,2671.7,2671.2,3.74355]
[1739226790482,0.8108,2671.7,2671.3,3.74342]
[1739226792717,0.8108,2671.7,2671.2,3.74355]
[1739226792920,0.8108,2671.7,2671.4,3.74333]
[1739226794821,0.8108,2671.7,2671.2,3.74355]
[1739226795030,0.8108,2671.7,2671.3,3.74346]
[1739226798025,0.8108,2671.7,2671.3,3.7434]
[1739226798328,0.8108,2671.7,2671.3,7.48683]
[1739226798920,0.8108,2671.7,2671.4,3.74325]
[1739226800700,0.8108,2671.7,2671.3,3.7434]
[1739226800900,0.8108,2671.7,2671.3,7.4868]
[1739226801425,0.8108,2671.7,2671.3,3.7434]
[1739226801631,0.8108,2671.7,2671.3,7.48679]
[1739226802133,0.8108,2671.7,2671.4,3.74335]
[1739226803416,0.8108,2671.7,2671.6,3.74307]
[1739226803607,4.51767,2672.1,2671.7,3.74292]
[1739226803940,3.74252,2672.0,2671.6,3.74307]
[1739226804310,3.74252,2672.0,2671.4,3.74327]
[1739226804510,3.74266,2671.9,2671.5,3.74321]
[1739226806136,3.74266,2671.9,2671.4,3.74327]
[1739226807449,3.74287,2671.8,2671.3,0.7759]
[1739226807646,3.74287,2671.8,2671.3,4.5193]
[1739226808248,4.49327,2671.8,2671.3,4.5193]
[1739226808450,4.49327,2671.8,2671.4,0.34999295]
[1739226809347,3.743,2671.7,2671.4,0.34999295]
[1739226809742,3.743,2671.7,2671.2,3.74363]
[1739226810041,7.48601,2671.7,2671.2,3.74363]
[1739226810427,3.74314,2671.6,2671.2,3.74363]
[1739226810812,3.743,2671.7,2671.3,0.35032205]
[1739226811124,3.743,2671.7,2671.3,4.09381205]
[1739226811748,3.743,2671.7,2671.3,3.74349]
[1739226812845,3.74303,2671.7,2671.2,3.74352]
[1739226813044,0.7504,2671.5,2671.1,6.74377]
[1739226814014,0.7504,2671.5,2671.1,6.74368]
[1739226814210,4.49364,2671.5,2670.9,9.89465]
[1739226814434,4.49364,2671.5,2671.0,3.74384]
[1739226814913,4.49364,2671.5,2671.1,0.35026823]
[1739226816551,4.49364,2671.5,2671.0,3.74384]
[1739226817461,8.23698,2671.5,2671.0,3.74384]
[1739226817613,4.49364,2671.5,2671.0,3.74384]
[1739226817818,8.23695,2671.5,2671.0,3.74384]
[1739226818450,8.23697,2671.5,2671.0,3.74384]
[1739226818652,3.74344,2671.4,2670.8,3.74412]
[1739226818851,3.74344,2671.4,2670.9,3.74397]
[1739226820648,3.74344,2671.4,2670.8,3.74412]
[1739226820848,3.74344,2671.4,2670.9,3.74405]
[1739226821057,3.74344,2671.4,2670.8,3.74412]
[1739226821255,3.74344,2671.4,2671.0,3.7439]
[1739226824034,3.74344,2671.4,2670.9,3.74405]
[1739226825165,0.7504,2671.3,2670.9,3.74405]
[1739226834671,4.49389,2671.3,2670.9,3.74405]
[1739226836073,0.7504,2671.3,2670.7,0.7607]
[1739226836280,4.49397,2671.3,2670.8,7.48819]
[1739226837443,4.49397,2671.3,2670.8,7.48818]
[1739226837638,4.49397,2671.3,2670.8,3.74409]
[1739226838279,4.5209,2671.1,2670.7,3.74431]
[1739226838939,4.5209,2671.1,2670.6,3.74435]
[1739226839768,4.5209,2671.1,2670.3,4.1735]
[1739226839979,4.5209,2671.1,2670.6,3.74436]
[1739226840388,4.5209,2671.1,2670.7,0.34999098]
[1739226841755,8.26475,2671.1,2670.6,3.74436]
[1739226841956,4.5209,2671.1,2670.6,3.74436]
[1739226842563,0.7771,2671.0,2670.6,3.74436]
[1739226843678,4.52102,2671.0,2670.6,3.74436]
[1739226844561,0.7771,2671.0,2670.4,3.74471]
[1739226844766,4.52111,2671.0,2670.5,3.74458]
[1739226845388,4.52111,2671.0,2670.4,3.74471]
[1739226845592,0.7771,2671.0,2670.6,4.09447887]
[1739226845888,0.7771,2671.0,2670.7,3.74426]
[1739226846086,0.7771,2671.3,2670.9,3.74398]
[1739226847206,0.7771,2671.3,2670.8,3.74419]
[1739226847207,0.7963,2671.0,2670.6,4.54327]
[1739226847358,0.7963,2671.0,2670.6,8.28766]
[1739226847983,0.7963,2671.0,2670.7,3.74432]
[1739226849664,0.7963,2670.8,2670.4,3.74472]
[1739226851434,0.7963,2670.8,2670.5,3.74458]
[1739226851895,0.7963,2670.8,2670.4,3.74472]
[1739226852194,0.7963,2670.8,2670.4,3.74467]
[1739226852358,0.7963,2670.8,2670.5,3.74459]
[1739226852558,0.7963,2670.8,2670.4,3.74467]
[1739226852771,0.7963,2670.8,2670.4,7.48936]
[1739226852971,0.7963,2670.8,2670.5,3.74461]
[1739226854608,0.7963,2670.8,2670.4,3.74467]
[1739226854777,0.7963,2670.8,2670.4,7.48934]
[1739226855911,0.7963,2670.8,2670.5,3.7446]
[1739226856420,0.7963,2670.8,2670.4,3.74467]
[1739226857308,0.7963,2670.8,2670.4,3.74473]
[1739226859790,0.7963,2670.7,2670.4,3.74473]
[1739226862116,0.7963,2670.7,2670.2,3.74494]
[1739226862320,0.7963,2670.7,2670.1,3.0]
[1739226862618,0.7976,2670.5,2670.1,3.74516]
[1739226868590,0.7476,2670.5,2670.1,3.74516]
[1739226868991,0.7476,2670.5,2670.2,3.745]
[1739226869732,0.7476,2670.5,2670.1,3.74516]
[1739226870442,0.7476,2670.5,2670.1,3.74508]
[1739226871481,0.7476,2670.5,2670.2,3.74503]
[1739226872904,0.7476,2670.5,2670.0,2.32583469]
[1739226873128,0.7476,2670.5,2670.1,3.74507]
[1739226873531,0.7476,2670.5,2670.1,7.49016]
[1739226874157,0.7476,2670.5,2670.1,7.49015]
[1739226874709,0.7476,2670.5,2670.1,3.74507]
[1739226875007,0.7476,2670.5,2670.2,3.74502]
[1739226878946,0.7476,2670.5,2670.1,3.74509]
[1739226880428,0.7476,2670.5,2670.0,6.07106469]
[1739226880758,0.7976,2670.4,2670.0,6.07106469]
[1739226881814,0.7976,2670.4,2670.0,9.81629469]
[1739226882942,0.7976,2670.4,2670.1,0.3747]
[1739226883143,0.7976,2670.4,2670.0,9.81629469]
[1739226883925,0.7976,2670.4,2670.1,3.74515]
[1739226886148,0.7976,2670.4,2670.0,9.81631469]
[1739226886457,0.7976,2670.4,2670.0,6.07106469]
[1739226886638,0.7976,2670.4,2670.1,3.7451]
[1739226890153,0.7976,2670.4,2670.1,3.74517]
[1739226893256,0.7976,2670.4,2670.2,3.74501]
[1739226893751,0.7976,2670.4,2670.1,3.74516]
[1739226896623,0.7976,2670.4,2670.2,3.745]
[1739226898669,0.7976,2670.4,2670.0,6.07106469]
[1739226898861,0.7976,2670.4,2670.1,3.74517]
[1739226899259,0.7976,2670.4,2670.1,3.7451]
[1739226899463,0.7976,2670.4,2670.2,3.74495]
[1739226899975,0.7862,2670.7,2670.1,4.5574]
[1739226900180,4.5306,2670.7,2670.2,3.74497]
[1739226900334,3.74449,2670.6,2670.2,3.74497]
[1739226900741,3.74449,2670.6,2670.1,4.55735]
[1739226901569,7.48905,2670.6,2670.1,4.55735]
[1739226901878,3.74449,2670.6,2670.1,4.55735]
[1739226902069,3.74449,2670.6,2670.2,0.35026426]
[1739226902275,3.74462,2670.5,2670.2,0.35026426]
[1739226903577,0.7862,2670.4,2670.1,3.74505]
[1739226904796,0.7862,2670.4,2670.0,6.07107469]
[1739226905071,0.7862,2670.4,2670.1,3.74516]
[1739226909086,0.7862,2670.4,2670.2,3.74502]
[1739226915046,0.7751,2670.6,2670.2,3.74502]
[1739226916299,0.7751,2670.6,2670.2,3.74495]
[1739226916475,0.7751,2670.6,2670.2,7.48992]
[1739226916677,0.7751,2670.6,2670.2,3.74495]
[1739226920599,4.51962,2670.6,2670.2,3.74495]
[1739226922404,0.7751,2670.6,2670.2,3.74495]
[1739226922700,0.7751,2670.6,2670.2,7.48988]
[1739226922879,0.7751,2670.6,2670.2,3.74493]
[1739226924806,4.51957,2670.6,2670.2,3.74493]
[1739226925004,4.51958,2670.6,2670.2,3.74493]
[1739226925209,0.7751,2670.6,2670.2,3.74493]
[1739226926209,0.7751,2670.6,2670.3,3.74483]
[1739226929918,3.74435,2670.7,2670.3,3.74483]
[1739226930619,3.74435,2670.7,2670.1,4.56993]
[1739226930917,3.74435,2670.7,2670.2,3.74501]
[1739226931818,3.74435,2670.7,2670.2,3.74503]
[1739226932320,0.09765823,2670.6,2670.3,3.74487]
[1739226932826,0.09765823,2670.6,2670.1,4.56993]
[1739226933001,0.09765823,2670.6,2670.2,3.74503]
[1739226934424,0.8264,2670.4,2670.0,2.32583469]
[1739226934607,3.745,2670.3,2670.0,2.32583469]
[1739226934923,3.84154185,2670.3,2669.8,3.74557]
[1739226935124,3.84154185,2670.3,2669.8,7.49108]
[1739226935332,3.84154185,2670.3,2669.8,3.74556]
[1739226936224,3.84154185,2670.3,2669.9,3.74542]
[1739226936791,0.09654185,2670.3,2669.9,3.74542]
[1739226940833,3.84145185,2670.3,2669.9,3.74542]
[1739226942234,0.09654185,2670.3,2669.9,3.74537]
[1739226942829,3.84155185,2670.3,2669.7,7.49127]
[1739226943037,0.09654185,2670.3,2669.8,3.74546]
[1739226943358,0.09654185,2670.3,2669.9,3.7454]
[1739226943634,3.84149185,2670.3,2669.9,3.74543]
[1739226943934,0.09654185,2670.3,2669.9,3.74543]
[1739226950044,0.09654185,2670.3,2669.8,3.74546]
[1739226950241,3.84149185,2670.3,2669.8,3.74546]
[1739226950444,3.84149185,2670.3,2669.8,7.49096]
[1739226950768,3.84149185,2670.3,2669.8,3.74546]
[1739226951416,3.84149185,2670.3,2669.8,7.49099]
[1739226952625,3.74503,2670.2,2669.8,3.74546]
[1739226952966,0.09054027,2670.1,2669.8,7.49093]
[1739226953350,3.74495,2670.3,2669.8,7.49093]
[1739226953536,0.09042815,2670.0,2669.8,7.49093]
[1739226953736,3.74495,2670.3,2669.8,7.49093]
[1739226954035,0.09065239,2670.2,2669.8,7.49093]
[1739226954436,3.74495,2670.3,2669.8,7.49093]
[1739226954636,0.09054027,2670.1,2669.8,7.49093]
[1739226954836,0.09065239,2670.2,2669.8,7.49093]
[1739226955032,0.09042815,2670.0,2669.8,7.49093]
[1739226955240,3.74495,2670.3,2669.8,7.49093]
[1739226955438,0.09031602,2669.9,2669.8,3.74546]
[1739226956053,3.74495,2670.3,2669.8,3.74546]
[1739226956251,0.09031602,2669.9,2669.8,3.74546]
[1739226956456,3.74495,2670.3,2669.8,3.74546]
[1739226956652,0.09031602,2669.9,2669.8,3.74546]
[1739226956870,3.74495,2670.3,2669.7,3.74573]
[1739226957066,0.09031602,2669.9,2669.8,3.74559]
[1739226957232,3.74495,2670.3,2669.9,3.74545]
[1739226957971,0.09065239,2670.2,2669.9,3.74545]
[1739226958371,3.74495,2670.3,2669.9,3.74545]
[1739226958575,0.09053049,2670.1,2669.9,3.74545]
[1739226958736,3.74495,2670.3,2669.9,3.74545]
[1739226958936,0.0906426,2670.2,2669.9,3.74545]
[1739226959178,3.74495,2670.3,2669.9,3.74545]
[1739226959351,0.09053049,2670.1,2669.9,3.74545]
[1739226959550,3.74495,2670.3,2669.9,3.74545]
[1739226959745,0.09041837,2670.0,2669.9,3.74545]
[1739226959951,3.74495,2670.3,2669.9,3.74545]
[1739226960166,0.09041837,2670.0,2669.9,3.74545]
[1739226960485,3.74495,2670.3,2669.9,3.74545]
[1739226960649,0.09041837,2670.0,2669.9,3.74545]
[1739226961165,3.74495,2670.3,2669.9,3.74545]
[1739226961362,0.09041837,2670.0,2669.7,3.74573]
[1739226961552,3.74495,2670.3,2669.8,3.74549]
[1739226961735,0.09030624,2669.9,2669.8,3.74549]
[1739226961940,3.74495,2670.3,2669.8,3.74549]
[1739226962153,0.0906426,2670.2,2669.8,3.74549]
[1739226962653,3.74495,2670.3,2669.8,3.74549]
[1739226962873,0.09053049,2670.1,2669.8,3.74549]
[1739226963185,0.09041837,2670.0,2669.8,3.74549]
[1739226963569,3.74495,2670.3,2669.8,3.74549]
[1739226963776,0.09030624,2669.9,2669.8,3.74549]
[1739226963944,3.74495,2670.3,2669.8,3.74549]
[1739226964145,0.0906426,2670.2,2669.8,3.74549]
[1739226964361,3.74495,2670.3,2669.8,3.74549]
[1739226964558,0.09053049,2670.1,2669.8,3.74549]
[1739226964872,0.0906426,2670.2,2669.8,3.74549]
[1739226965053,0.09041837,2670.0,2669.8,3.74549]
[1739226965255,3.74495,2670.3,2669.8,3.74549]
[1739226965455,0.09030624,2669.9,2669.8,3.74549]
[1739226965656,3.74495,2670.3,2669.7,3.74562]
[1739226965858,0.09030624,2669.9,2669.8,3.74553]
[1739226966057,3.74495,2670.3,2669.8,3.74553]
[1739226966259,0.09030624,2669.9,2669.8,3.74553]
[1739226966458,7.48992,2670.3,2669.8,3.74553]
[1739226966689,0.09030624,2669.9,2669.8,3.74553]
[1739226966858,7.48992,2670.3,2669.8,4.09528011]
[1739226967055,0.09030624,2669.9,2669.8,4.09528011]
[1739226967289,7.48992,2670.3,2669.8,4.09528011]
[1739226967489,0.09030624,2669.9,2669.8,4.09528011]
[1739226967669,7.48992,2670.3,2669.8,4.09528011]
[1739226967865,0.09030624,2669.9,2669.8,4.09528011]
[1739226968065,3.74495,2670.3,2669.8,4.09528011]
[1739226968421,3.74509,2670.2,2669.8,3.74553]
[1739226968697,3.83572774,2670.2,2669.8,3.74553]
[1739226976124,0.09063774,2670.2,2669.8,3.74553]
[1739226976326,3.7449,2670.3,2669.8,7.49106]
[1739226976624,0.09063774,2670.2,2669.8,7.49106]
[1739226976923,3.7449,2670.3,2669.8,7.49106]
[1739226977128,0.09063774,2670.2,2669.8,7.49106]
[1739226977421,3.7449,2670.3,2669.8,7.49106]
[1739226977623,0.09052563,2670.1,2669.8,7.49106]
[1739226977786,0.09063774,2670.2,2669.8,7.49106]
[1739226977989,0.09041351,2670.0,2669.8,7.49102]
[1739226978185,3.7449,2670.3,2669.8,7.49102]
[1739226978425,0.09030138,2669.9,2669.8,3.74549]
[1739226978723,3.7449,2670.3,2669.8,3.74549]
[1739226979121,0.09063774,2670.2,2669.9,3.74545]
[1739226979336,3.7449,2670.3,2669.8,3.74558]
[1739226979540,3.83572774,2670.2,2669.8,3.74558]
[1739226979741,0.09063774,2670.2,2669.8,7.49107]
[1739226979917,3.7449,2670.3,2669.8,3.74549]
[1739226980119,0.09063774,2670.2,2669.8,3.74549]
[1739226980318,3.7449,2670.3,2669.8,3.74549]
[1739226980519,0.09063774,2670.2,2669.8,3.74549]
[1739226980721,3.7449,2670.3,2669.8,3.74549]
[1739226980920,0.09063774,2670.2,2669.8,3.74549]
[1739226981121,3.7449,2670.3,2669.8,3.74549]
[1739226981338,0.09063774,2670.2,2669.8,3.74549]
[1739226981649,3.7449,2670.3,2669.8,7.491]
[1739226981806,0.09052563,2670.1,2669.9,3.74545]
[1739226982011,0.09063774,2670.2,2669.8,3.74559]
[1739226982212,0.09041351,2670.0,2669.8,3.74559]
[1739226982407,3.7449,2670.3,2669.8,3.74559]
[1739226982408,3.7449,2670.3,2669.9,3.74545]
[1739226982611,3.7449,2670.3,2669.8,3.74559]
[1739226982947,3.7449,2670.3,2669.8,7.49107]
[1739226983646,0.09063285,2670.2,2669.8,7.49107]
[1739226983944,3.7449,2670.3,2669.8,7.49107]
[1739226984245,0.09066356,2670.2,2669.8,7.49107]
[1739226984609,3.7449,2670.3,2669.8,7.49107]
[1739226984809,0.09055145,2670.1,2669.8,7.49107]
[1739226985032,0.09066356,2670.2,2669.8,7.49107]
[1739226985234,0.09043933,2670.0,2669.8,7.49107]
[1739226985437,3.7449,2670.3,2669.8,7.49107]
[1739226985622,0.0903272,2669.9,2669.8,3.74548]
[1739226985833,3.7449,2670.3,2669.8,3.74548]
[1739226986033,0.0903272,2669.9,2669.8,3.74548]
[1739226986232,3.7449,2670.3,2669.8,3.74548]
[1739226986434,0.0903272,2669.9,2669.8,3.74548]
[1739226986634,3.7449,2670.3,2669.8,3.74548]
[1739226986829,0.0903272,2669.9,2669.8,3.74548]
[1739226987034,3.7449,2670.3,2669.8,3.74548]
[1739226987235,0.0903272,2669.9,2669.8,3.74548]
[1739226987436,3.7449,2670.3,2669.8,3.74548]
[1739226987634,0.0903272,2669.9,2669.8,3.74548]
[1739226987844,3.7449,2670.3,2669.8,4.09564422]
[1739226988028,0.0903272,2669.9,2669.8,4.09564422]
[1739226988552,3.7449,2670.3,2669.8,4.09564422]
[1739226988856,0.09066356,2670.2,2669.8,4.09564422]
[1739226989220,3.7449,2670.3,2669.8,4.09564422]
[1739226989445,0.09055145,2670.1,2669.8,4.09564422]
[1739226989647,0.09066356,2670.2,2669.8,4.09564422]
[1739226989857,0.09043933,2670.0,2669.8,4.09564422]
[1739226990059,3.7449,2670.3,2669.8,4.09564422]
[1739226990550,0.09066356,2670.2,2669.8,4.09564422]
[1739226990735,3.7449,2670.3,2669.8,3.74548]
[1739226990923,0.09066356,2670.2,2669.8,3.74548]
[1739226991119,3.7449,2670.3,2669.8,3.74548]
[1739226991320,0.09066356,2670.2,2669.8,3.74548]
[1739226991663,3.7449,2670.3,2669.8,3.74548]
[1739226991949,0.09066356,2670.2,2669.8,3.74548]
[1739226992157,3.7449,2670.3,2669.8,3.74548]
[1739226992343,0.09066356,2670.2,2669.8,3.74548]
[1739226992542,3.7449,2670.3,2669.8,3.74548]
[1739226992847,0.09066356,2670.2,2669.8,3.74548]
[1739226993157,3.7449,2670.3,2669.8,3.74548]
[1739226993357,0.09066356,2670.2,2669.8,3.74548]
[1739226993557,3.7449,2670.3,2669.8,3.74548]
[1739226993759,3.74539,2670.0,2669.6,3.7912]
[1739226993959,3.83577356,2670.2,2669.8,3.74553]
[1739226994126,0.09066356,2670.2,2669.8,3.74553]
[1739226994325,3.74495,2670.3,2669.8,7.49103]
[1739226994526,0.09093998,2670.2,2669.8,7.49103]
[1739226994848,3.74495,2670.3,2669.8,7.49099]
[1739226995049,0.09082788,2670.1,2669.8,3.74549]
[1739226995250,0.09093998,2670.2,2669.9,3.74542]
[1739226995562,3.74495,2670.3,2669.9,3.74542]
[1739226995725,0.09093998,2670.2,2669.9,3.74542]
[1739226995925,3.74495,2670.3,2669.9,3.74542]
[1739226996126,0.09093998,2670.2,2669.9,3.74542]
[1739226996337,3.74495,2670.3,2669.9,3.74542]
[1739226996540,0.09093998,2670.2,2669.9,3.74542]
[1739226996739,3.74495,2670.3,2669.9,3.74542]
[1739226996944,0.09093998,2670.2,2669.8,3.74549]
[1739226997173,3.74495,2670.3,2669.8,7.49095]
[1739226997349,0.09076645,2670.1,2669.8,7.49095]
[1739226997669,3.74495,2670.3,2669.8,7.49095]
[1739226997864,0.09071577,2670.0,2669.8,7.49095]
[1739226998170,3.74495,2670.3,2669.9,3.74545]
[1739226998369,0.09093998,2670.2,2669.9,3.74545]
[1739226998573,3.74495,2670.3,2669.9,3.74545]
[1739226998735,0.09093998,2670.2,2669.9,3.74545]
[1739226998937,3.74495,2670.3,2669.9,3.74545]
[1739226999280,0.09093998,2670.2,2669.9,3.74545]
[1739226999632,3.74495,2670.3,2669.9,3.74545]
[1739226999838,0.09082788,2670.1,2669.9,3.74545]
[1739227000150,0.09071577,2670.0,2669.9,3.74545]
[1739227000350,3.74495,2670.3,2669.9,3.74545]
[1739227000550,0.09093998,2670.2,2669.9,3.74545]
[1739227000751,3.74495,2670.3,2669.9,3.74545]
[1739227001168,0.09093998,2670.2,2669.8,3.74546]
[1739227001359,3.74495,2670.3,2669.9,3.74545]
[1739227001562,0.09093998,2670.2,2669.9,3.74545]
[1739227001762,3.74495,2670.3,2669.9,3.74545]
[1739227001973,0.09093998,2670.2,2669.9,3.74545]
[1739227002280,3.74413,2670.9,2670.4,3.74468]
[1739227002455,5.35,2671.0,2670.4,3.74468]
[1739227002456,5.35,2671.0,2670.5,4.54534]
[1739227002783,0.08133205,2670.9,2670.5,4.54534]
[1739227003570,3.82540205,2670.9,2670.5,0.8008]
[1739227011719,3.74428,2670.8,2670.5,0.8008]
[1739227012018,0.08110795,2670.7,2670.5,0.8008]
[1739227012515,3.74407,2670.9,2670.5,0.8008]
[1739227012716,0.08099589,2670.6,2670.5,0.8008]
[1739227013225,3.74407,2670.9,2670.5,0.8008]
[1739227013419,0.08099589,2670.6,2670.5,0.8008]
[1739227013720,3.74407,2670.9,2670.5,0.8008]
[1739227014213,0.08122,2670.8,2670.5,0.8008]
[1739227018746,0.08122,2670.8,2670.4,7.48933]
[1739227020247,0.08122,2670.8,2670.4,3.74465]
[1739227020854,0.87452,2670.8,2669.7,4.30448]
[1739227021050,3.74589,2669.6,2669.4,4.30448]
[1739227021252,3.74579,2669.7,2669.1,3.74646]
[1739227021420,0.07865272,2669.5,2669.1,8.05094]
[1739227021620,0.07876492,2669.6,2669.1,4.30448]
[1739227021818,3.74603,2669.5,2669.0,3.74664]
[1739227022026,0.07925134,2669.5,2669.2,0.34939897]
[1739227022627,3.82529134,2669.5,2669.2,0.34939897]
[1739227022826,0.07925134,2669.5,2669.2,0.34939897]
[1739227023556,0.07925134,2669.5,2669.0,3.74661]
[1739227023722,3.82536134,2669.5,2669.0,3.74661]
[1739227023924,0.07925134,2669.5,2669.0,3.74661]
[1739227024141,0.07925134,2669.5,2669.1,3.74654]
[1739227024947,0.07936819,2669.4,2668.9,3.74676]
[1739227026876,0.07936819,2669.4,2668.8,0.76378811]
[1739227027071,0.07925134,2669.5,2669.2,3.74634]
[1739227027373,0.07966992,2669.4,2669.2,3.74634]
[1739227028675,0.07966992,2669.4,2669.0,3.74664]
[1739227028676,0.07966992,2669.4,2669.0,3.74661]
[1739227028849,0.07966992,2669.4,2669.1,3.74646]
[1739227029047,0.07966992,2669.4,2669.2,3.74643]
[1739227031552,0.07966992,2669.4,2669.2,7.49286]
[1739227031749,0.07966992,2669.4,2669.2,3.74643]
[1739227031991,0.07966992,2669.4,2669.2,7.49279]
[1739227032200,0.07966992,2669.4,2669.2,3.74636]
[1739227032894,0.7852,2669.3,2669.0,3.74662]
[1739227033081,0.7852,2669.3,2668.5,3.74737]
[1739227033288,0.07862864,2669.2,2669.0,3.74663]
[1739227033587,0.7852,2669.3,2669.0,3.74663]
[1739227033758,0.07860163,2669.2,2669.0,3.74663]
[1739227033965,0.7852,2669.3,2669.0,3.74663]
[1739227034298,0.07860163,2669.2,2669.0,3.74663]
[1739227034514,0.07860163,2669.2,2668.8,3.7469]
[1739227034814,0.07848945,2669.1,2668.9,3.74684]
[1739227035091,0.7852,2669.3,2668.9,3.74684]
[1739227035300,0.0783802,2669.0,2668.9,3.74684]
[1739227035465,0.7852,2669.3,2668.9,3.74684]
[1739227035664,0.0783478,2669.0,2668.9,3.74684]
[1739227035865,0.7852,2669.3,2668.9,3.74684]
[1739227036062,0.7852,2669.3,2668.9,3.74686]
[1739227036267,3.82535134,2669.5,2668.8,3.7469]
[1739227036268,0.07857217,2669.2,2669.1,3.74645]
[1739227036695,0.07925134,2669.5,2669.1,3.74645]
[1739227036869,0.07716405,2669.2,2669.1,3.74645]
[1739227037069,0.07925134,2669.5,2669.1,3.74645]
[1739227037271,0.07753552,2669.2,2669.1,3.74645]
[1739227037492,0.07925134,2669.5,2669.1,3.74645]
[1739227037696,0.0784753,2669.2,2669.1,3.74645]
[1739227038000,0.07749857,2669.2,2669.1,3.74645]
[1739227038201,3.82531134,2669.5,2669.0,4.5483]
[1739227038403,0.07766422,2669.4,2669.0,4.54823]
[1739227038700,0.07766422,2669.4,2669.1,3.74657]
[1739227039267,0.07766422,2669.4,2669.0,0.8016]
[1739227039478,3.82383422,2669.4,2669.0,0.8016]
[1739227039680,3.82383422,2669.4,2669.0,4.54828]
[1739227040377,0.07766422,2669.4,2669.0,4.54828]
[1739227040618,0.07766422,2669.4,2669.1,3.74657]
[1739227040818,3.82383422,2669.4,2669.0,0.8016]
[1739227041120,0.07766422,2669.4,2669.0,3.74665]
[1739227041521,3.82385422,2669.4,2668.9,3.74674]
[1739227041682,3.82385422,2669.4,2668.9,7.49348]
[1739227041883,3.82385422,2669.4,2668.9,3.74674]
[1739227042097,3.82385422,2669.4,2669.0,3.74671]
[1739227042298,0.7872,2669.3,2669.0,3.74671]
[1739227042497,0.7872,2669.3,2668.9,3.74674]
[1739227042706,0.07854027,2669.2,2668.9,3.74674]
[1739227042915,0.07854027,2669.2,2669.0,3.74665]
[1739227043124,0.7872,2669.3,2669.0,3.74665]
[1739227043287,0.07705918,2669.1,2669.0,3.74665]
[1739227043483,0.7872,2669.3,2669.0,3.74665]
[1739227043687,0.07705918,2669.1,2669.0,3.74665]
[1739227043916,3.74649,2669.2,2668.8,3.0]
[1739227044087,0.07831135,2669.1,2668.8,3.0]
[1739227044288,0.07831135,2669.1,2668.8,6.7469]
[1739227044690,4.53357,2669.3,2668.8,6.74692]
[1739227044928,0.07695737,2669.0,2668.8,6.74692]
[1739227045105,4.53357,2669.3,2668.8,6.74692]
[1739227045304,0.07616541,2668.9,2668.8,6.74692]
[1739227045604,4.53357,2669.3,2668.9,3.74685]
[1739227045800,0.7872,2669.3,2668.8,3.0]
[1739227046006,3.74653,2669.2,2668.6,4.50026]
[1739227046428,3.74653,2669.2,2668.7,3.74702]
[1739227046588,3.74653,2669.2,2668.7,3.0]
[1739227046794,3.74653,2669.2,2668.8,3.74699]
[1739227047347,4.5336,2669.3,2668.6,4.50037]
[1739227047543,3.74685,2669.0,2668.4,0.7531]
[1739227047744,0.7872,2668.9,2668.4,4.50054]
[1739227047942,0.7872,2668.9,2668.5,3.74738]
[1739227048445,0.07683284,2668.8,2668.5,3.74738]
[1739227052029,0.07683284,2668.8,2668.4,3.74744]
[1739227052228,0.07683284,2668.8,2668.5,3.74742]
[1739227052631,0.7872,2668.9,2668.5,3.74742]
[1739227052833,0.07496309,2668.7,2668.5,3.74742]
[1739227053022,0.7872,2668.9,2668.5,3.74742]
[1739227053227,0.07507535,2668.8,2668.5,3.74742]
[1739227054060,0.07507535,2668.8,2668.4,3.74744]
[1739227054555,0.07507535,2668.8,2668.5,3.7474]
[1739227056582,0.07507535,2668.8,2668.4,3.74749]
[1739227057661,0.7872,2668.7,2668.2,4.5009]
[1739227057861,3.74742,2668.5,2668.2,0.7531]
[1739227058059,0.07358223,2668.6,2668.2,0.7531]
[1739227058261,0.07382521,2668.4,2668.2,0.7531]
[1739227058464,3.74729,2668.6,2668.2,0.7531]
[1739227058652,0.07371293,2668.3,2668.2,0.7531]
[1739227058839,3.74729,2668.6,2668.2,0.7531]
[1739227059035,3.7477,2668.3,2668.1,0.34997069]
[1739227059241,0.07360064,2668.2,2668.0,3.37387231]
[1739227059442,0.07360064,2668.2,2668.0,4.50121]
[1739227059641,3.74756,2668.4,2668.0,4.50121]
[1739227059854,0.07347096,2668.3,2668.0,4.50121]
[1739227060271,4.53483,2668.4,2667.9,3.0]
[1739227060467,0.07312788,2668.2,2668.0,3.74806]
[1739227060666,0.07302478,2668.3,2667.9,3.0]
[1739227060866,0.07280014,2668.1,2668.0,3.74809]
[1739227061067,0.7872,2668.4,2668.0,3.74809]
[1739227061267,0.07280014,2668.1,2668.0,3.74809]
[1739227061468,0.7872,2668.4,2668.0,3.74809]
[1739227061782,0.07280014,2668.1,2667.9,6.74813]
[1739227062075,0.7872,2668.4,2668.0,3.74812]
[1739227062878,0.7872,2668.4,2667.9,6.74813]
[1739227063083,0.7872,2668.4,2668.0,3.74808]
[1739227063884,0.07302478,2668.3,2668.0,3.74808]
[1739227066383,0.07302478,2668.3,2668.1,3.74789]
[1739227067381,0.07302478,2668.3,2667.9,6.74817]
[1739227067686,0.07302478,2668.3,2668.0,3.74812]
[1739227068583,0.07302478,2668.3,2668.1,3.74794]
[1739227068773,0.07302478,2668.3,2668.0,3.74812]
[1739227069184,0.07302478,2668.3,2668.1,3.74797]
[1739227070367,0.07302478,2668.3,2668.0,3.74805]
[1739227070556,0.07302478,2668.3,2668.0,7.49609]
[1739227071907,0.07302478,2668.3,2668.0,3.74804]